Workbook

Sheet 1st PM ETHNINC
B1: Number of Roots | F1: Chisquare with Yates Corection | G1: P Value
A2: Ethnic Group | B2: Single rooted | C2: >=2 rooted | F2: 312.439 | G2: 0
A3: Caucasian | B3: 3471 | C3: 71 | D3: =SUM(B3:C3) -> 3542
A4: African | B4: 335 | C4: 65 | D4: 400
A5: Indian | B5: 1201 | C5: 49 | D5: 1250
A6: Mongolia | B6: 1409 | C6: 6 | D6: 1415
A7: Middle East | B7: 979 | C7: 21 | D7: 1000
A8: Total | B8: =SUM(B3:B7) -> 7395 | C8: =SUM(C3:C7) -> 212 | D8: 7607
B12: Apical Foramina | F12: Chisquare | G12: P Value
A13: Ethnic Group | B13: 1 | C13: >1 | D13: 3 | E13: Total
A14: Caucasian | B14: 1490 | C14: 383 | D14: =SUM(B14:C14) -> 1873 | E14: 1873
A15: Indian | B15: 1239 | C15: 311 | D15: =SUM(B15:C15) -> 1550 | E15: 1550 | F15: 19.946 | G15: 0.0001747
A16: Mongolia | B16: 905 | C16: 164 | D16: =SUM(B16:C16) -> 1069 | E16: 1069
A17: Middle East | B17: 595 | C17: 105 | D17: =SUM(B17:C17) -> 700 | E17: 700
A18: Total | B18: =SUM(B14:B17) -> 4229 | C18: =SUM(C14:C17) -> 963 | D18: =SUM(B18:C18) -> 5192 | E18: 5192
B21: Root Canal Anatomy | G21: Chisquare with Yates Corection | H21: P Value
A22: Ethnic Group | B22: 1 | C22: 2 | D22: >2 | E22: C | G22: 196.655 | H22: 0
A23: Caucasian | B23: 2586 | C23: 935 | D23: 25 | E23: 15 | F23: 3561
A24: African | B24: 604 | C24: 193 | D24: 15 | E24: 0 | F24: 812
A25: Indian | B25: 343 | C25: 137 | D25: 0 | E25: 15 | F25: 495
A26: Mongolia | B26: 1311 | C26: 251 | D26: 14 | E26: 42 | F26: 1618
A27: Middle East | B27: 795 | C27: 372 | D27: 21 | E27: 7 | F27: 1195
A28: Total | B28: 5639 | C28: 1888 | D28: 75 | E28: 79 | F28: 7681

Sheet 2nd PM Ethinic
B1: Number of Roots | F1: Chisquare with Yates Corection | G1: P Value
A2: Ethnic Group | B2: Single rooted | C2: >=2 rooted | F2: 16.049 | G2: 0.0029
A3: Caucasian | B3: 3740 | C3: 15 | D3: =SUM(B3:C3) -> 3755
A4: African | B4: 94 | C4: 2 | D4: =SUM(B4:C4) -> 96
A5: Indian | B5: 962 | C5: 5 | D5: 967
A6: Mongolia | B6: 853 | C6: 14 | D6: 867
A7: Middle East | B7: 5649 | C7: 36 | D7: 5685
A8: Total | B8: =SUM(B3:B7) -> 11298 | C8: =SUM(C3:C7) -> 72 | D8: =SUM(B8:C8) -> 11370
B12: Apical Foramina | E12: Chisquare | F12: P Value
A13: Ethnic Group | B13: 1 | C13: >1
A14: Caucasian | B14: 438 | C14: 12 | D14: =SUM(B14:C14) -> 450
A15: Indian | B15: 122 | C15: 14 | D15: =SUM(B15:C15) -> 136 | E15: 42.098 | F15: 0
A16: Mongolia | B16: 934 | C16: 150 | D16: =SUM(B16:C16) -> 1084
A17: Middle East | B17: 1494 | C17: 176 | D17: =SUM(B17:C17) -> 1670
A18: Total | B18: =SUM(B14:B17) -> 2988 | C18: =SUM(C14:C17) -> 352 | D18: =SUM(B18:C18) -> 3340
B22: Root Canal Anatomy | G22: Chisquare with Yates Corection | H22: P Value
A23: Ethnic Group | B23: 1 | C23: 2 | D23: >2 | E23: C | G23: 98.286 | H23: 0
A24: Caucasian | B24: 1571 | C24: 199 | D24: 2 | E24: 0 | F24: 1772
A25: African | B25: 351 | C25: 49 | D25: 8 | E25: 0 | F25: 408
A26: Indian | B26: 115 | C26: 21 | D26: 0 | E26: 0 | F26: 136
A27: Mongolia | B27: 212 | C27: 5 | D27: 0 | E27: 1 | F27: 218
A28: Middle East | B28: 868 | C28: 212 | D28: 2 | E28: 2 | F28: 1084
A29: Total | B29: 3117 | C29: 486 | D29: 12 | E29: 3 | F29: 3618

Sheet 2nd PM popu
B1: Number of Roots | E1: Chisquare with Yates Corection | F1: P Value | H1: Root Canal Anatomy | K1: Chisquare with Yates Corection | L1: P Value
A2: Within Caucasian | B2: Single rooted | C2: >=2 rooted | H2: 1 | I2: >2
A3: FRANCE | B3: 320 | C3: 8 | D3: =SUM(B3:C3) -> 328 | G3: FRANCE | H3: 284 | I3: 44 | J3: 328
A4: GERMANY | B4: 2086 | C4: 3 | D4: =SUM(B4:C4) -> 2089 | G4: Poland | H4: 38 | I4: 18 | J4: 56 | K4: 26.232 | L4: 2.1e-06
A5: USA | B5: 1334 | C5: 4 | D5: =SUM(B5:C5) -> 1338 | E5: 32.316 | F5: 7e-07 | G5: USA | H5: 1249 | I5: 137 | J5: 1386
A6: TOTAL | B6: =SUM(B3:B5) -> 3740 | C6: =SUM(C3:C5) -> 15 | D6: =SUM(B6:C6) -> 3755 | H6: 1571 | I6: 199 | J6: 1770
B7: =SUM(B6) -> 3740 | C7: =SUM(C6) -> 15 | D7: =SUM(B7:C7) -> 3755
B10: Number of Roots | E10: Chisquare with Yates Corection | F10: P Value
A11: MONGOLIA | B11: Single rooted | C11: >=2 rooted | H11: Root Canal Anatomy | K11: Chisquare with Yates Corection | L11: P Value
A12: CHINA | B12: 178 | C12: 0 | D12: =SUM(B12:C12) -> 178 | G12: CHINA | H12: 173 | I12: 5 | J12: 178
A13: KOREA | B13: 784 | C13: 5 | D13: =SUM(B13:C13) -> 789 | E13: 0.287 | F13: 0.86 | G13: JAPAN | H13: 39 | I13: 1 | J13: 40 | K13: 0.182 | L13: 0.699
B14: =SUM(B12:B13) -> 962 | C14: =SUM(C12:C13) -> 5 | D14: =SUM(B14:C14) -> 967 | H14: 212 | I14: 6 | J14: 218
O15: 3e-08
B19: Number of Roots
A20: MIDDLE EAST | B20: Single rooted | C20: >=2 rooted | E20: Chisquare with Yates Corection | F20: P Value | H20: Root Canal Anatomy | K20: Chisquare with Yates Corection | L20: P Value
A21: KUWAIT | B21: 61 | C21: 3 | D21: =SUM(B21:C21) -> 64 | I21: 1 | J21: >2
A22: JORDAN | B22: 389 | C22: 11 | D22: =SUM(B22:C22) -> 400 | E22: 9.472 | F22: 0.0236 | H22: KUWAIT | I22: 61 | J22: 3
A23: IRAN | B23: 103 | C23: 0 | D23: =SUM(B23:C23) -> 103 | H23: JORDAN | I23: 288 | J23: 112 | K23: 38.023 | L23: 3e-07
A24: TURKEY | B24: 300 | C24: 0 | D24: =SUM(B24:C24) -> 300 | H24: IRAN | I24: 283 | J24: 37
B25: =SUM(B21:B24) -> 853 | C25: =SUM(C21:C24) -> 14 | D25: =SUM(B25:C25) -> 867 | H25: TURKEY | I25: 236 | J25: 64

Sheet 1st PM Popu
B1: Number of Roots | E1: Chisquare | F1: P Value | H1: Root Canal Anatomy | J1: Chisquare with Yates Corection | K1: P Value
A2: Within Caucasian | B2: Single rooted | C2: >=2 rooted | H2: 1 | I2: >2
A3: FRANCE | B3: 309 | C3: 32 | D3: =SUM(B3:C3) -> 341 | G3: FRANCE | H3: 235 | I3: 106 | J3: 16.743 | K3: 0.00023
A4: GERMANY | B4: 2352 | C4: 17 | D4: =SUM(B4:C4) -> 2369 | E4: 116.245 | F4: 0 | G4: Poland | H4: 74 | I4: 9
A5: USA | B5: 810 | C5: 22 | D5: =SUM(B5:C5) -> 832 | G5: USA | H5: 2588 | I5: 820
A6: TOTAL | B6: =SUM(B3:B5) -> 3471 | C6: =SUM(C3:C5) -> 71 | D6: =SUM(B6:C6) -> 3542

Sheet Sheet1
A1: Ethnic Group | B1: Number of roots within first premolars | H1: Total for Ethnic Group | I1: Chi square with Yates Correction | J1: P Value
B3: 1 | D3: 2 | F3: >2
A4: Caucasian | B4: 3471 | D4: 61 | F4: 10 | H4: 3542
A5: African | B5: 335 | D5: 65 | F5: 0 | H5: 400
A6: Indian | B6: 1201 | D6: 47 | F6: 2 | H6: 1250 | I6: 333.192 | J6: 0*
A7: Mongolian | B7: 1409 | D7: 6 | F7: 0 | H7: 1415
A8: Middle East | B8: 979 | D8: 21 | F8: 0 | H8: 1000
A9: Sub-group Total | B9: 7395 | D9: 200 | F9: 12 | H9: 7607(N)
B11: Number of root canals in first premolars
B12: 1 | C12: 2 | E12: 3 | G12: C-shaped
A13: Caucasian | B13: 2586 | C13: 935 | E13: 25 | G13: 15 | H13: 3561 | I13: 201.321 | J13: 0*
A14: African | B14: 604 | C14: 193 | E14: 15 | G14: 0 | H14: 812
A15: Indian | B15: 343 | C15: 137 | E15: 0 | G15: 15 | H15: 495
A16: Mongolian | B16: 1311 | C16: 251 | E16: 14 | G16: 42 | H16: 1618
A17: Middle East | B17: 795 | C17: 372 | E17: 21 | G17: 7 | H17: 1195
A18: Sub-group Total | B18: 5639 | C18: 1888 | E18: 75 | G18: 79 | H18: 7681 (N)
B19: Number of apical foramina in first premolar
B20: 1 | D20: 2 | F20: 3
A21: Caucasian | B21: 1490 | D21: 383 | F21: 0 | H21: 1873
A22: Indian | B22: 1239 | D22: 307 | F22: 4 | H22: 1550 | I22: 30.621 | J22: 0*
A23: Mongolia | B23: 905 | D23: 160 | F23: 4 | H23: 1069
A24: Middle East | B24: 595 | D24: 100 | F24: 5 | H24: 700
A25: Sub-group Total | B25: 4229 | D25: 950 | F25: 13 | H25: 5192 (N)
B26: Number of roots in second premolar | J26: .
B27: Single rooted | D27: Bi-rooted | F27: > 2 Roots
A28: Caucasian | B28: 3740 | D28: 9 | F28: 6 | H28: 3755
A29: Indian | B29: 94 | D29: 2 | F29: 0 | H29: 96 | I29: 27.479 | J29: 00011*
A30: Mongolia | B30: 962 | D30: 5 | F30: 0 | H30: 967
A31: Middle East | B31: 853 | D31: 14 | F31: 0 | H31: 867
A32: Sub-group Total | B32: 5649 | D32: 30 | F32: 6 | H32: 5685 (N)
B33: Number of Root Canals in Second Premolar
B34: 1 | C34: 2 | E34: >2 | G34: C-shaped
A35: Caucasian | B35: 1571 | C35: 199 | E35: 2 | G35: 0 | H35: 1772
A36: African | B36: 351 | C36: 49 | E36: 8 | G36: 0 | H36: 408
A37: Indian | B37: 115 | C37: 21 | E37: 0 | G37: 0 | H37: 136 | I37: 98.286 | J37: .000*
A38: Mongolia | B38: 212 | C38: 5 | E38: 0 | G38: 1 | H38: 218
A39: Middle East | B39: 868 | C39: 212 | E39: 2 | G39: 2 | H39: 1084
A40: Sub-group Total | B40: 3117 | C40: 486 | E40: 12 | G40: 3 | H40: 3618 (N)
B41: Number of Apical foramina in Second Premolar
B42: 1 | D42: 2 | F42: 3
A43: Caucasian | B43: 438 | D43: 12 | F43: 0 | H43: 450
A44: Indian | B44: 122 | D44: 14 | F44: 0 | H44: 136 | I44: 40.915 | J44: .000*
A45: Middle East | B45: 934 | D45: 150 | F45: 0 | H45: 1084
A46: Sub-group Total | B46: 1494 | D46: 176 | F46: 0 | H46: 1670 (N)

Sheet Sheet2
A1: Ethnic Group | B1: Root Canal Configuration for 1st premolar (Vertucci Type) | K1: Total | L1: Chi square with Yates Correction | M1: P Value
B3: 1 | C3: 2 | D3: 3 | E3: 4 | F3: 5 | G3: 6 | H3: 7 | I3: 8 | J3: Non- Vertucci Type | L3: 293.39 | M3: 0*
A4: Caucasian | B4: 360 | C4: 0 | D4: 16 | E4: 32 | F4: 96 | G4: 0 | H4: 0 | I4: 0 | J4: 0 | K4: 504
A5: Indian | B5: 1108 | C5: 48 | D5: 16 | E5: 237 | F5: 69 | G5: 2 | H5: 0 | I5: 4 | J5: 2 | K5: 1486
A6: Mongolia | B6: 720 | C6: 21 | D6: 27 | E6: 31 | F6: 92 | G6: 0 | H6: 1 | I6: 4 | J6: 0 | K6: 896
A7: Middle East | B7: 680 | C7: 68 | D7: 41 | E7: 94 | F7: 125 | G7: 6 | H7: 6 | I7: 2 | J7: 7 | K7: 1029
A8: Sub-group Total | B8: 2868 | C8: 137 | D8: 100 | E8: 394 | F8: 382 | G8: 8 | H8: 7 | I8: 10 | J8: 9 | K8: 3915(N)
A9: Root Canal Configuration for 2nd premolar | L9: 127.762
A10: Caucasian | B10: 390 | C10: 0 | D10: 0 | E10: 0 | F10: 10 | G10: 0 | H10: 0 | I10: 0 | J10: 0 | K10: 400 | M10: 0*
A11: Indian | B11: 110 | C11: 9 | D11: 3 | E11: 3 | F11: 11 | G11: 0 | H11: 0 | I11: 0 | J11: 0 | K11: 136
A12: Mongolia | B12: 173 | C12: 0 | D12: 0 | E12: 1 | F12: 3 | G12: 0 | H12: 0 | I12: 0 | J12: 1 | K12: 178
A13: Middle East | B13: 600 | C13: 38 | D13: 22 | E13: 55 | F13: 81 | G13: 3 | H13: 2 | I13: 0 | J13: 2 | K13: 803
A14: Sub-group Total | B14: 1273 | C14: 47 | D14: 25 | E14: 59 | F14: 105 | G14: 3 | H14: 2 | I14: 0 | J14: 3 | K14: 1517(N)
